bitfinex/quotes_ETHUSD_20241108
["timestamp","ask_amount","ask_price","bid_price","bid_amount"]
[1731060822662,0.6006,2906.2,2905.3,0.01]
[1731060823685,0.6006,2906.2,2905.3,0.07882871]
[1731060823873,0.6006,2906.2,2905.3,0.01]
[1731060824274,0.6006,2906.2,2905.3,0.07882868]
[1731060824681,0.6006,2906.2,2905.3,0.01]
[1731060825097,0.6006,2906.2,2905.2,0.01]
[1731060827003,0.36006,2906.1,2905.2,0.01]
[1731060827201,0.6006,2906.0,2905.2,0.01]
[1731060829791,0.6006,2906.0,2905.1,0.01]
[1731060829988,0.6006,2906.0,2904.9,0.56]
[1731060830312,0.6006,2906.0,2905.2,0.01]
[1731060836406,0.6006,2906.0,2905.4,0.01]
[1731060837316,0.6006,2906.0,2905.6,0.01]
[1731060838368,0.6006,2906.7,2905.7,0.8285]
[1731060838770,0.6006,2906.7,2905.8,0.06882321]
[1731060839070,0.6006,2906.7,2905.7,0.8285]
[1731060839270,0.6006,2906.7,2905.6,0.01]
[1731060840702,0.36006,2906.6,2905.6,0.01]
[1731060840914,0.6006,2906.5,2905.6,0.01]
[1731060841417,0.6006,2906.5,2905.6,0.8427]
[1731060841611,0.6006,2906.5,2905.9,0.01]
[1731060846723,0.6006,2906.5,2906.1,0.01]
[1731060846937,0.6006,2906.5,2906.3,0.01]
[1731060847821,3.0,2907.4,2906.3,0.01]
[1731060848040,0.6006,2907.2,2906.3,0.01]
[1731060848331,0.6006,2907.2,2906.5,0.01]
[1731060848996,0.6006,2907.2,2906.3,0.01]
[1731060849206,0.6006,2907.2,2906.1,0.01]
[1731060850420,0.6006,2907.2,2905.9,0.55]
[1731060850742,0.6006,2907.2,2906.0,0.01]
[1731060850894,0.6006,2907.2,2905.8,0.8018]
[1731060850895,0.6006,2907.2,2905.8,0.8118]
[1731060851098,0.6006,2907.0,2905.7,0.07880861]
[1731060851605,0.6106,2907.0,2905.7,0.01]
[1731060851813,0.6006,2906.8,2905.7,0.01]
[1731060855052,0.6006,2906.8,2905.7,0.07882013]
[1731060855255,0.6006,2906.8,2905.7,0.01]
[1731060855856,0.6006,2906.8,2905.7,0.07882012]
[1731060856166,0.6006,2906.8,2906.0,0.01]
[1731060856334,0.6006,2906.8,2906.0,0.87381258]
[1731060856520,0.6006,2906.8,2906.2,0.01]
[1731060857753,0.6006,2906.8,2905.9,0.01]
[1731060860802,0.6006,2906.8,2905.7,0.55]
[1731060860970,0.6006,2906.8,2905.8,0.43302]
[1731060861366,0.6006,2906.8,2905.7,0.01]
[1731060862867,0.6006,2906.8,2905.7,0.07881853]
[1731060863476,0.6006,2906.8,2905.7,0.01]
[1731060866578,0.6006,2906.8,2905.7,0.07881851]
[1731060867823,0.6006,2906.8,2905.8,1.53306566]
[1731060868117,0.6006,2906.8,2905.9,0.06881851]
[1731060868410,0.65602647,2906.8,2905.9,0.06881851]
[1731060868614,0.6006,2906.7,2905.9,0.06881851]
[1731060870192,0.6006,2906.7,2905.8,1.53306566]
[1731060870699,0.6006,2906.7,2905.9,0.06881852]
[1731060870913,0.6006,2906.7,2905.8,1.53306566]
[1731060871577,0.6006,2906.7,2905.7,0.01]
[1731060872186,0.6006,2906.7,2905.8,0.8331]
[1731060872384,0.6006,2906.7,2905.9,0.07881849]
[1731060872615,0.6006,2906.7,2905.9,1.61188415]
[1731060872813,0.6006,2906.7,2906.0,0.24449841]
[1731060874916,0.6006,2906.7,2906.3,0.01]
[1731060875580,0.6006,2906.7,2906.3,0.07880741]
[1731060875780,0.6006,2906.7,2906.3,1.61187307]
[1731060876083,0.6006,2907.2,2906.6,0.01]
[1731060877888,0.6006,2907.2,2906.4,0.01]
[1731060878097,0.6006,2907.1,2906.4,0.01]
[1731060878625,0.6006,2907.1,2906.5,0.06880484]
[1731060878936,0.6006,2907.1,2906.4,0.01]
[1731060880586,0.6006,2907.1,2906.2,0.8305]
[1731060880814,0.6006,2907.0,2906.2,0.01]
[1731060881611,0.96066,2907.0,2906.2,0.01]
[1731060881932,0.6006,2906.9,2906.2,0.01]
[1731060883286,0.6006,2906.9,2906.2,0.07880747]
[1731060883821,0.6006,2906.9,2906.2,0.01]
[1731060884539,0.6006,2906.9,2906.2,0.07880748]
[1731060885523,0.6006,2906.9,2906.2,0.01]
[1731060885684,0.6006,2906.9,2906.2,0.0788075]
[1731060886095,0.6006,2906.9,2906.2,0.8602075]
[1731060886519,0.6006,2906.9,2906.4,0.01]
[1731060886720,0.6006,2906.9,2906.4,0.07880511]
[1731060887021,0.6006,2906.9,2906.4,0.01]
[1731060893628,0.6006,2906.9,2906.6,0.01]
[1731060894828,0.6006,2906.9,2906.4,0.56]
[1731060894999,0.6006,2906.9,2906.7,0.01]
[1731060896101,0.6006,2906.9,2906.4,0.55]
[1731060896611,0.6006,2906.9,2906.3,0.24932732]
[1731060896793,0.6006,2906.9,2906.3,0.01]
[1731060897125,0.6006,2906.9,2906.1,0.01]
[1731060897332,0.6006,2906.9,2906.0,0.55]
[1731060897529,0.6006,2906.9,2906.2,0.01]
[1731060897824,0.6006,2906.9,2906.3,0.01]
[1731060898330,0.6006,2906.9,2906.5,0.01]
[1731060898635,0.6006,2906.9,2906.0,0.55]
[1731060898636,0.6006,2906.9,2906.3,0.01]
[1731060900292,0.6006,2906.9,2906.3,0.07880536]
[1731060900527,0.6006,2906.9,2906.3,0.01]
[1731060900829,0.6006,2906.9,2906.3,0.90000538]
[1731060900998,0.6006,2906.9,2906.4,0.2433071]
[1731060901198,0.6006,2906.9,2906.4,0.31211248]
[1731060901393,0.6006,2906.9,2906.6,0.01]
[1731060901924,0.6006,2906.9,2906.4,0.2533071]
[1731060902432,0.6006,2906.9,2906.4,0.01]
[1731060902628,0.6006,2906.9,2906.6,0.01]
[1731060910241,4.43306193,2907.5,2906.6,0.01]
[1731060910242,0.6006,2907.4,2906.6,0.8246]
[1731060910542,0.6006,2907.4,2906.8,0.01]
[1731060910743,0.6006,2907.4,2906.8,1.78571201]
[1731060911034,0.6006,2907.4,2906.8,0.25264635]
[1731060912830,0.6006,2907.4,2906.9,0.06879576]
[1731060913031,0.6006,2907.4,2907.0,0.01]
[1731060922660,0.6006,2907.9,2907.3,0.01]
[1731060922828,0.6006,2907.9,2907.6,0.01]
[1731060924166,0.6006,2908.1,2907.6,0.01]
[1731060926149,1.53306566,2908.6,2907.6,0.01]
[1731060926370,0.6006,2908.5,2907.8,0.01]
[1731060928063,0.6006,2908.5,2908.0,0.01]
[1731060928267,0.6006,2908.5,2908.0,0.30893461]
[1731060929162,0.6006,2908.5,2908.0,0.24016657]
[1731060929369,0.6006,2908.5,2908.0,0.07876805]
[1731060929762,0.6006,2908.5,2908.0,0.01]
[1731060930455,0.6006,2908.5,2907.8,0.01]
[1731060933844,0.6006,2908.3,2907.4,0.56]
[1731060934048,0.21336657,2908.2,2907.4,0.56]
[1731060934269,0.6006,2908.3,2907.7,0.01]
[1731060934950,0.6006,2908.3,2907.5,0.01]
[1731060935279,0.6006,2908.3,2907.3,0.7656]
[1731060935458,0.6006,2908.1,2907.4,0.07878359]
[1731060936560,0.6006,2908.1,2907.4,0.01]
[1731060938985,0.6006,2908.5,2907.4,0.01]
[1731060939215,0.51336657,2908.4,2907.5,0.8124]
[1731060939573,0.51336657,2908.4,2907.6,0.01]
[1731060940454,0.6006,2908.3,2907.5,0.8124]
[1731060940684,0.6006,2908.3,2907.5,0.8224]
[1731060941597,0.6006,2908.3,2907.3,0.7725]
[1731060943687,0.6006,2908.3,2907.4,0.06878306]
[1731060944071,0.6006,2908.3,2907.5,0.01]
[1731060944258,0.81396657,2908.3,2907.5,0.01]
[1731060944590,0.6006,2908.2,2907.3,0.7625]
[1731060945287,0.6006,2908.2,2907.4,0.01]
[1731060947103,0.6006,2908.1,2907.3,0.7625]
[1731060947304,0.6006,2908.1,2907.2,0.01]
[1731060947508,0.21336657,2908.0,2907.2,0.01]
[1731060949176,0.6006,2908.1,2907.3,0.771]
[1731060949590,0.6006,2908.1,2907.3,0.83978412]
[1731060950292,0.6006,2908.1,2907.3,0.771]
[1731060950809,0.6006,2908.1,2907.3,0.83978414]
[1731060951373,0.6006,2908.1,2907.3,0.771]
[1731060951605,0.21336657,2908.0,2907.3,0.771]
[1731060955722,0.21336657,2908.0,2907.4,0.01]
[1731060956052,0.6006,2908.1,2907.4,0.01]
[1731060956567,0.6006,2908.1,2907.3,0.771]
[1731060958523,5.03366193,2908.1,2907.3,0.771]
[1731060958742,0.6006,2908.1,2907.3,0.771]
[1731060962319,1.53306566,2908.2,2907.3,0.771]
[1731060962320,1.53306566,2908.0,2907.3,0.771]
[1731060962558,0.6006,2907.9,2907.3,0.771]
[1731060962768,0.21336657,2907.8,2907.3,0.771]
[1731060963056,0.21336657,2907.8,2907.0,0.828]
[1731060963272,0.6006,2907.6,2906.8,0.789]
[1731060965076,0.6006,2907.6,2906.6,0.7629]
[1731060965234,1.53306566,2907.3,2906.6,0.7629]
[1731060965558,0.6006,2907.2,2906.6,0.7629]
[1731060965928,1.53306566,2906.7,2905.8,0.8095]
[1731060966259,1.9564285,2907.5,2906.3,0.7995]
[1731060966260,0.6006,2907.0,2906.3,0.7995]
[1731060966464,0.6006,2907.4,2906.5,0.01]
[1731060966765,0.6006,2907.4,2906.6,0.7674]
[1731060967258,0.6006,2907.4,2906.9,0.01]
[1731060967963,0.6006,2907.4,2906.7,0.01]
[1731060968135,0.6006,2907.4,2906.6,0.7674]
[1731060968882,0.6006,2907.3,2906.4,0.7865]
[1731060969060,0.6006,2907.1,2906.2,0.7865]
[1731060970541,0.6006,2907.0,2905.9,0.7711]
[1731060971378,3.31977043,2907.2,2905.7,0.7711]
[1731060971379,0.6006,2906.7,2905.7,0.7711]
[1731060971587,0.6006,2906.7,2905.7,0.7811]
[1731060972184,0.6006,2906.7,2905.7,0.7711]
[1731060972367,3.0,2906.8,2905.4,0.01]
[1731060972368,0.6006,2906.5,2905.5,0.7711]
[1731060973582,0.6006,2906.4,2905.4,0.01]
[1731060974880,0.6006,2906.4,2905.3,0.8171]
[1731060975061,0.6006,2906.4,2905.1,0.01]
[1731060975062,0.6006,2906.2,2905.1,0.7801]
[1731060975461,3.6006,2906.2,2905.3,0.01]
[1731060975657,0.69203704,2906.1,2905.3,0.01]
[1731060977261,0.6006,2906.2,2905.3,0.01]
[1731060977658,0.6006,2906.2,2905.1,0.7701]
[1731060977888,3.0,2906.2,2905.1,0.7701]
[1731060978090,0.6006,2906.1,2905.1,0.7701]
[1731060978553,0.6006,2906.1,2905.2,0.06884129]
[1731060978996,0.6006,2906.1,2905.1,0.7801]
[1731060980558,0.6006,2906.1,2905.1,0.7701]
[1731060980856,0.6006,2906.1,2904.9,0.7807]
[1731060981056,0.6006,2905.9,2904.9,0.7807]
[1731060981294,0.6006,2905.9,2905.0,0.06884265]
[1731060981586,0.6006,2905.9,2905.3,0.01]
[1731060982375,0.6006,2905.9,2905.0,0.01]
[1731060985095,0.6006,2905.9,2904.8,0.01]
[1731060985583,0.6006,2905.7,2904.8,0.01]
[1731060985787,0.6006,2905.7,2904.8,0.07884399]
[1731060986791,0.6006,2905.7,2904.8,0.01]
[1731060989089,0.6006,2905.7,2904.6,0.7807]
[1731060989275,0.6006,2905.7,2904.5,0.01]
[1731060990256,0.6006,2905.7,2904.4,0.8317]
[1731060990463,0.6006,2905.5,2904.4,0.8317]
[1731060990788,0.6006,2905.3,2904.4,0.8417]
[1731060992283,0.6006,2905.3,2904.4,0.8317]
[1731060992478,0.6006,2905.3,2904.2,0.01]
[1731060992817,0.6006,2905.2,2904.0,0.01]
[1731060993037,0.6006,2905.0,2904.0,0.01]
[1731060994109,0.6006,2905.0,2904.2,0.01]
[1731060994301,0.6006,2905.0,2904.0,0.01]
[1731060995300,0.6006,2905.0,2903.8,0.1479222]
[1731060995485,0.6006,2905.0,2903.9,0.06886304]
[1731060995685,0.6006,2905.0,2903.8,0.1479222]
[1731060996618,0.6006,2904.8,2903.8,0.1479222]
[1731060997325,0.6006,2904.8,2903.8,0.1379222]
[1731060998724,0.6006,2904.6,2903.8,0.1379222]
[1731061005334,0.6006,2904.6,2903.9,0.757]
[1731061005640,0.6006,2904.6,2903.8,0.1379222]
[1731061006724,0.6006,2904.4,2903.8,0.1379222]
[1731061009605,0.6006,2904.4,2903.9,0.8017]
[1731061010709,0.6006,2904.4,2903.8,0.1479222]
[1731061012341,0.6006,2904.4,2903.8,0.1379222]
[1731061014109,0.6006,2904.4,2903.9,0.7962]
[1731061016555,0.6006,2904.4,2903.8,0.1379222]
[1731061024567,0.6006,2905.1,2903.9,0.90816944]
[1731061024856,1.89468299,2905.2,2904.4,0.01]
[1731061024857,0.6006,2905.0,2904.4,0.01]
[1731061025054,0.6006,2905.0,2904.4,0.07885094]
[1731061025355,0.6006,2905.0,2904.2,0.8396]
[1731061025664,2.13595342,2905.0,2904.2,0.44896]
[1731061025890,2.13595342,2905.0,2903.8,0.1379222]
[1731061025891,0.6006,2904.7,2903.8,0.9002222]
[1731061026520,1.53535342,2904.6,2903.8,0.1479222]
[1731061026852,0.6006,2904.5,2903.8,0.1479222]
[1731061030464,0.6006,2904.5,2903.8,0.1379222]
[1731061030936,0.6006,2904.4,2903.8,0.1379222]
[1731061031135,0.6006,2904.2,2903.8,0.1379222]
[1731061035762,3.32691208,2904.1,2903.8,0.1379222]
[1731061035967,0.6006,2904.0,2903.8,0.1379222]
[1731061039061,0.31978147,2903.9,2903.8,0.1379222]
[1731061039239,0.88781702,2903.9,2903.8,0.1379222]
[1731061040099,0.56803555,2903.9,2903.8,0.1379222]
[1731061040460,0.6006,2904.0,2903.8,0.1379222]
[1731061048136,0.6006,2904.3,2903.8,0.1379222]
[1731061050128,0.6006,2904.5,2903.9,0.8265]
[1731061051889,0.6006,2904.5,2903.8,0.1379222]
[1731061052223,0.6006,2904.3,2903.8,0.1379222]
[1731061054734,0.36006,2904.4,2903.9,0.8065]
[1731061054983,0.6006,2904.5,2903.9,0.8065]
[1731061056049,0.6006,2904.7,2904.0,0.01]
[1731061056252,0.6006,2904.7,2904.1,0.817]
[1731061056444,0.6006,2904.7,2904.2,0.01]
[1731061057143,5.36057401,2905.0,2904.2,0.01]
[1731061057339,1.31568145,2905.0,2904.2,0.01]
[1731061057576,0.6006,2905.0,2904.4,0.01]
[1731061057981,1.43306193,2905.2,2904.4,0.01]
[1731061058284,0.6006,2905.3,2904.6,0.01]
[1731061058440,3.36338338,2905.4,2904.7,0.8214]
[1731061058656,3.36338338,2905.4,2904.8,0.01]
[1731061058861,0.6006,2905.2,2904.3,0.01]
[1731061059167,2.03366193,2905.2,2904.4,0.8214]
[1731061059357,3.32691208,2905.0,2904.2,0.7808]
[1731061059558,0.6006,2904.9,2904.2,0.7808]
[1731061059971,3.6006,2904.9,2904.2,0.7808]
[1731061060167,0.69275121,2904.8,2904.0,0.01]
[1731061060393,0.69275121,2904.8,2904.0,0.7738]
[1731061060619,3.32691208,2904.7,2904.0,0.7738]
[1731061061514,0.6006,2904.6,2903.9,0.01]
[1731061061660,0.6006,2904.6,2903.8,0.9017222]
[1731061062372,1.06262633,2904.6,2903.8,0.9017222]
[1731061065501,4.06262633,2904.6,2903.8,0.9017222]
[1731061066569,5.49568826,2904.6,2903.8,0.9017222]
[1731061066761,4.06262633,2904.6,2903.8,0.9017222]
[1731061068306,4.06262633,2904.6,2904.0,0.01]
[1731061068307,0.6006,2904.6,2904.0,0.01]
[1731061076513,3.6006,2904.6,2903.8,0.9017222]
[1731061081248,5.12581314,2904.8,2903.9,0.7944]
[1731061081470,2.3911616,2904.9,2903.9,0.7944]
[1731061081471,1.43306193,2904.9,2904.3,0.01]
[1731061081752,1.43306193,2905.0,2904.4,0.7844]
[1731061081952,0.17905616,2904.9,2904.4,0.7844]
[1731061082650,0.6006,2904.8,2903.9,0.7844]
[1731061082856,3.0,2904.6,2903.9,0.7844]
[1731061084542,3.0,2904.6,2903.9,0.7944]
[1731061084727,3.8360574,2904.6,2903.9,0.7844]
[1731061085252,3.8360574,2904.6,2903.9,0.7944]
[1731061085458,0.8360574,2904.6,2903.9,0.7944]
[1731061086124,4.61211809,2904.9,2904.3,0.7844]
[1731061086652,1.61211809,2904.9,2904.3,0.7844]
[1731061087654,4.61211809,2904.9,2904.3,0.7844]
[1731061088317,1.61211809,2904.9,2904.3,0.7844]
[1731061089154,3.32691208,2905.2,2904.6,0.01]
[1731061089155,1.43306193,2905.2,2904.6,0.01]
[1731061089318,1.43306193,2905.4,2904.7,0.7927]
[1731061089647,1.43306193,2905.5,2904.8,0.8182]
[1731061090163,1.43306193,2905.6,2904.8,0.8182]
[1731061090465,0.65506536,2905.6,2904.8,0.8182]
[1731061091759,3.65506536,2905.6,2904.8,0.8182]
[1731061093365,3.0,2905.6,2904.8,0.8182]
[1731061095165,3.0,2905.8,2905.1,0.8208]
[1731061095349,4.75997401,2906.1,2905.3,0.8208]
[1731061095668,4.75997401,2906.4,2905.5,0.8208]
[1731061095820,3.54174899,2906.4,2905.6,0.01]
[1731061096019,3.54174899,2906.4,2905.7,0.8141]
[1731061096431,1.43306193,2906.9,2906.0,0.01]
[1731061096667,4.07021387,2907.0,2906.3,0.7673]
[1731061096972,4.49330179,2907.0,2906.3,0.7673]
[1731061097199,3.32691208,2906.9,2906.3,0.7673]
[1731061098230,3.0,2906.8,2906.3,0.7673]
[1731061098475,0.63269121,2906.7,2906.3,0.7673]
[1731061099171,3.0,2906.8,2906.3,0.7673]
[1731061099377,4.49330179,2907.0,2906.3,0.7773]
[1731061100574,3.0,2906.9,2906.3,0.7773]
[1731061101641,3.74330179,2907.0,2906.3,0.7773]
[1731061102371,3.0,2907.0,2906.3,0.7773]
[1731061103366,3.675,2907.0,2906.3,0.7773]
[1731061103793,7.00191208,2907.0,2906.3,0.7673]
[1731061105356,3.32691208,2907.3,2906.5,0.7591]
[1731061105555,3.0,2907.2,2906.5,0.7591]
[1731061108370,3.32691208,2907.0,2906.5,0.7591]
[1731061113670,3.0,2906.9,2906.0,0.8216]
[1731061113987,0.63269121,2906.8,2906.0,0.8216]
[1731061116465,1.23329121,2906.8,2906.0,0.8216]
[1731061117407,0.63269121,2906.8,2906.0,0.8216]
[1731061117709,3.0,2906.6,2906.0,0.8216]
[1731061121419,3.6006,2906.6,2906.0,0.8216]
[1731061121583,0.69275121,2906.5,2906.0,0.8216]
[1731061122827,3.0,2906.3,2906.0,0.8216]
[1731061123015,3.0,2906.3,2904.8,3.78111155]
[1731061123016,3.32691208,2906.1,2905.7,0.7976]
[1731061123541,3.92751208,2906.1,2905.7,0.7976]
[1731061123744,0.39275121,2906.0,2905.5,0.7976]
[1731061125130,3.32691208,2906.1,2905.5,0.7976]
[1731061130347,0.69275121,2906.5,2905.5,0.8076]
[1731061130542,3.32691208,2906.4,2905.5,0.8076]
[1731061130743,3.0,2906.3,2905.5,0.8076]
[1731061131439,3.0,2906.3,2905.5,0.7976]
[1731061131672,0.6006,2906.2,2905.5,0.7976]
[1731061132178,3.0,2906.3,2905.5,0.8076]
[1731061132375,3.69275121,2906.3,2905.5,0.8076]
[1731061134550,3.69275121,2906.3,2905.5,0.7976]
[1731061136546,3.69275121,2906.3,2905.5,0.8076]
[1731061136766,3.69275121,2906.3,2905.5,0.7976]
[1731061137166,3.69275121,2906.3,2905.5,0.8076]
[1731061141320,1.43038262,2906.4,2905.8,0.7887]
[1731061141489,1.43038262,2906.6,2905.8,0.7887]
[1731061141692,4.7572947,2906.7,2905.8,0.7887]
[1731061141895,0.71487196,2906.6,2905.8,0.7887]
[1731061143409,2.14525458,2906.6,2905.8,0.7887]
[1731061144314,5.14525458,2906.6,2905.8,0.7887]
[1731061146891,4.43038262,2906.6,2905.8,0.7887]
[1731061147096,4.43038262,2906.8,2906.1,0.7787]
[1731061147419,1.53340394,2906.6,2906.1,0.7787]
[1731061148089,1.53340394,2906.4,2906.1,0.7787]
[1731061148417,3.0,2906.7,2906.1,0.7787]
[1731061148418,1.53340394,2906.2,2906.1,0.7787]
[1731061148617,1.53340394,2906.2,2905.7,0.7666]
[1731061149420,2.1297826,2906.2,2905.7,0.7666]
[1731061150788,1.53340394,2906.0,2905.7,0.7666]
[1731061152334,0.6006,2906.4,2905.7,0.7666]
[1731061152335,4.43038262,2906.4,2905.7,0.7666]
[1731061152518,4.53340394,2906.2,2905.7,0.7666]
[1731061152835,1.53340394,2906.2,2905.7,0.7666]
[1731061153987,1.53340394,2906.0,2905.7,0.7666]
[1731061154189,1.53340394,2905.8,2905.2,0.8131]
[1731061154441,4.53340394,2906.0,2905.2,0.8131]
[1731061154920,1.53340394,2906.0,2905.2,0.8131]
[1731061155422,1.53340394,2905.8,2905.3,0.01]
[1731061156396,1.53340394,2905.8,2905.4,0.7541]
[1731061158722,2.96378656,2906.0,2905.4,0.7541]
[1731061158925,3.0,2905.9,2905.4,0.7541]
[1731061160240,3.64800856,2905.9,2905.4,0.7541]
[1731061163432,3.0,2905.9,2905.4,0.7541]
[1731061166426,4.43038262,2905.9,2905.4,0.7541]
[1731061167149,4.40352601,2905.9,2905.4,0.7541]
[1731061170248,4.53340394,2905.7,2905.4,0.7541]
[1731061170455,4.43038262,2905.6,2905.4,0.7541]
[1731061170657,6.73942114,2905.5,2904.8,0.7719]
[1731061170961,1.53340394,2905.3,2904.8,0.7719]
[1731061171261,1.53340394,2905.1,2904.8,0.7719]
[1731061171762,2.96378656,2905.1,2904.8,0.7719]
[1731061171917,1.53340394,2904.9,2904.3,0.01]
[1731061172255,1.53340394,2904.7,2904.4,0.8116]
[1731061172957,0.83569458,2904.9,2904.4,0.8116]
[1731061173159,1.53340394,2904.8,2904.4,0.8116]
[1731061175256,1.53340394,2904.6,2904.4,0.8116]
[1731061176453,1.53340394,2904.6,2903.9,0.01]
[1731061176454,1.53340394,2904.6,2904.0,0.7572]
[1731061177549,0.6006,2905.1,2904.3,0.7618]
[1731061177719,1.53340394,2904.9,2904.3,0.7618]
[1731061180155,1.53340394,2904.7,2904.3,0.7618]
[1731061180352,0.6006,2905.1,2904.3,0.7618]
[1731061180574,1.53340394,2904.9,2904.3,0.7618]
[1731061180883,1.53340394,2904.7,2904.3,0.7618]
[1731061190854,0.6006,2905.3,2904.3,0.7618]
[1731061191049,1.53340394,2905.0,2904.3,0.7618]
[1731061191589,1.53340394,2904.9,2904.6,0.7776]
[1731061192557,1.53340394,2905.2,2904.6,0.7776]
[1731061192759,1.53340394,2904.7,2904.6,0.7776]
[1731061194185,1.53340394,2904.7,2904.2,0.7612]
[1731061196867,1.53340394,2904.7,2904.2,0.7712]
[1731061198381,0.6006,2904.9,2904.2,0.7712]
[1731061198567,2.13400394,2904.9,2904.2,0.7712]
[1731061199502,1.53340394,2904.9,2904.2,0.7712]
[1731061200498,0.35936534,2905.1,2904.4,0.01]
[1731061200664,1.53340394,2904.9,2904.6,0.01]
[1731061201588,1.53340394,2904.9,2904.5,0.8038]
[1731061202355,1.53340394,2904.7,2904.5,0.8038]
[1731061202561,1.53340394,2904.7,2904.3,0.8187]
[1731061202866,5.03098262,2905.2,2904.3,0.8187]
[1731061203066,1.53340394,2904.7,2904.3,0.8187]
[1731061203763,1.53340394,2904.7,2904.3,0.8087]
[1731061205581,1.53340394,2904.9,2904.3,0.8087]
[1731061205890,0.70964653,2905.1,2904.3,0.8087]
[1731061206096,1.53340394,2904.9,2904.3,0.8087]
[1731061206465,0.6006,2905.2,2904.4,0.01]
[1731061206664,1.53340394,2904.9,2904.5,0.8218]
[1731061207380,1.53340394,2905.1,2904.5,0.8218]
[1731061207781,0.80841208,2905.4,2904.5,0.8218]
[1731061208107,0.80841208,2905.4,2904.9,0.7717]
[1731061208108,1.53340394,2905.4,2904.9,0.7717]
[1731061208390,1.53340394,2905.6,2905.1,0.7885]
[1731061208581,1.8297826,2905.6,2905.1,0.7885]
[1731061208779,1.53340394,2905.4,2905.1,0.7885]
[1731061211471,4.43038262,2905.8,2905.2,0.01]
[1731061211671,1.53340394,2905.5,2905.2,0.01]
[1731061216202,1.53340394,2905.8,2905.3,0.8248]
[1731061216443,1.43038262,2906.1,2905.3,0.8248]
[1731061216739,0.23913725,2906.1,2905.5,0.01]
[1731061216924,1.53340394,2906.0,2905.6,0.7612]
[1731061217540,1.43038262,2906.2,2905.6,0.7612]
[1731061217725,1.53340394,2906.2,2905.8,0.7795]
[1731061218047,1.53340394,2906.2,2905.9,0.01]
[1731061220536,0.74341075,2906.6,2905.9,0.01]
[1731061220741,1.53340394,2906.3,2906.0,0.7524]
[1731061221535,1.53340394,2906.5,2906.3,0.7621]
[1731061221735,2.03098262,2907.1,2906.3,0.7621]
[1731061221938,1.53340394,2906.8,2906.3,0.7621]
[1731061222139,1.53340394,2906.6,2906.3,0.7621]
[1731061222503,1.53340394,2906.6,2906.4,0.01]
[1731061222707,1.53340394,2906.6,2906.3,0.7621]
[1731061222929,1.53340394,2906.4,2905.9,0.8173]
[1731061223134,0.21340039,2906.3,2905.9,0.8173]
[1731061223306,1.53340394,2906.3,2905.9,0.8173]
[1731061224551,1.53340394,2906.5,2906.1,0.7616]
[1731061225467,3.3223988,2906.8,2906.1,0.7616]
[1731061225631,3.0,2906.7,2906.1,0.7616]
[1731061225829,3.93223988,2906.7,2906.1,0.7616]
[1731061227330,3.3223988,2906.5,2906.1,0.7616]
[1731061230463,3.3223988,2906.5,2905.8,0.7933]
[1731061231453,3.0,2906.4,2905.8,0.7933]
[1731061235788,3.0,2906.4,2906.0,0.01]
[1731061236101,3.93223988,2906.7,2906.1,0.753]
[1731061236256,0.55208734,2906.6,2906.1,0.753]
[1731061236455,3.0,2906.7,2906.2,0.01]
[1731061236694,3.0,2906.7,2906.3,0.753]
[1731061241491,3.3223988,2906.5,2905.9,0.8098]
[1731061241662,3.0,2906.4,2905.9,0.8198]
[1731061242104,3.0,2906.4,2905.9,0.8098]
[1731061246167,0.6006,2906.3,2905.9,0.8098]
[1731061246568,0.6006,2906.3,2905.6,0.7881]
[1731061249385,1.53403877,2906.0,2905.6,0.7881]
[1731061253612,5.03098262,2906.3,2905.8,0.01]
[1731061253613,1.43038262,2906.3,2905.8,0.01]
[1731061253812,1.53403877,2906.4,2905.9,0.772]
[1731061260037,1.53403877,2906.1,2905.9,0.772]
[1731061260269,1.53403877,2906.1,2905.7,0.7799]
[1731061261142,1.53403877,2905.9,2905.4,0.7799]
[1731061261356,2.13048091,2905.9,2905.4,0.7799]
[1731061262454,1.53403877,2905.7,2905.4,0.7799]
[1731061266556,1.53403877,2905.7,2905.2,0.7884]
[1731061266557,1.53403877,2905.5,2905.2,0.7884]
[1731061266879,1.53403877,2905.5,2904.2,0.01]
[1731061266880,1.53403877,2905.2,2904.9,0.7884]
[1731061267228,2.13048091,2905.2,2904.9,0.7884]
[1731061267457,2.13048091,2905.2,2904.6,0.7884]
[1731061267458,0.59644214,2905.2,2904.6,0.7884]
[1731061267764,3.0,2905.0,2904.4,0.7884]
[1731061270376,3.0,2905.0,2904.2,0.7883]
[1731061270677,3.0,2905.0,2904.3,0.01]
[1731061271437,3.0,2904.7,2904.2,0.7883]
[1731061271971,3.0,2904.7,2903.8,0.1379222]
[1731061271972,0.6006,2904.6,2903.9,0.8061]
[1731061272351,3.0,2904.4,2903.9,0.8061]
[1731061272764,3.0,2904.4,2903.8,0.1379222]
[1731061272961,0.59644214,2904.3,2903.8,0.1379222]
[1731061276539,0.6006,2904.2,2903.8,0.1379222]
[1731061279984,0.6006,2904.6,2903.9,0.01]
[1731061280327,0.6006,2904.8,2904.2,0.7657]
[1731061283180,3.0,2905.0,2904.2,0.7657]
[1731061284299,3.69263289,2905.0,2904.2,0.7657]
[1731061288800,3.69263289,2905.0,2904.2,0.71874]
[1731061291402,1.53529412,2904.7,2904.2,0.71874]
[1731061296489,1.53529412,2904.7,2904.3,0.01]
[1731061296691,1.53529412,2904.9,2904.4,0.7646]
[1731061297841,1.53529412,2905.1,2904.8,0.767]
[1731061298130,1.53529412,2904.9,2904.8,0.767]
[1731061298422,1.53529412,2904.9,2904.4,0.777]